bitfinex-derivatives/quotes_SOLF0:USTF0_20240907
["timestamp","ask_amount","ask_price","bid_price","bid_amount"]
[1725676449652,3.9979,125.1,125.06,13.8089]
[1725676450257,3.9976,125.11,125.06,9.81]
[1725676450451,4.03359676,125.13,125.07,9.81]
[1725676450656,11.1674,125.14,125.07,9.81]
[1725676451255,15.14443855,125.14,125.07,9.81]
[1725676452457,3.9973,125.12,125.08,3.9982]
[1725676453863,9.81,125.13,125.01,4.0405]
[1725676454161,9.81,125.13,125.05,9.81]
[1725676454467,3.9976,125.11,125.06,3.9988]
[1725676455758,3.9978,125.1,125.06,3.9988]
[1725676456157,3.9978,125.1,125.07,9.81]
[1725676457761,5.33443855,125.14,125.07,9.81]
[1725676457960,5.33443855,125.14,125.08,9.81]
[1725676458463,3.9973,125.12,125.08,13.8082]
[1725676459860,3.9969,125.13,125.1,9.81]
[1725676461056,7.97363855,125.14,125.1,9.81]
[1725676461257,3.9966,125.14,125.1,9.81]
[1725676461865,3.90320979,125.13,125.1,13.8077]
[1725676462455,3.9966,125.14,125.1,13.8077]
[1725676463063,8.03522336,125.14,125.1,13.8077]
[1725676463265,3.9966,125.14,125.1,13.8077]
[1725676463767,8.05281562,125.14,125.1,13.8077]
[1725676464660,3.9962,125.15,125.11,9.81]
[1725676466270,9.81,125.15,125.06,4.1651]
[1725676466569,9.81,125.15,125.08,9.81]
[1725676466766,3.997,125.13,125.09,3.9979]
[1725676466959,3.916677,125.12,125.09,3.9979]
[1725676467161,3.997,125.13,125.09,3.9979]
[1725676467359,8.07720506,125.13,125.1,3.9977]
[1725676467670,4.08020506,125.13,125.1,3.9977]
[1725676471064,8.07700506,125.13,125.1,3.9977]
[1725676471270,4.08020506,125.13,125.09,3.998]
[1725676471470,3.9972,125.12,125.07,9.81]
[1725676472068,3.9972,125.12,125.08,3.9983]
[1725676473069,4.04454873,125.13,125.06,4.1651]
[1725676473070,13.85454873,125.13,125.06,4.1651]
[1725676473368,9.81,125.13,125.06,13.9751]
[1725676473574,3.9976,125.11,125.07,3.9985]
[1725676473774,3.95497201,125.1,125.07,3.9985]
[1725676474373,3.95497201,125.1,125.07,13.8085]
[1725676475870,3.9976,125.11,125.07,13.8085]
[1725676476375,8.02247326,125.11,125.07,13.8085]
[1725676484381,3.9972,125.12,125.08,13.8083]
[1725676484581,3.95689229,125.13,125.08,9.81]
[1725676484883,1.3056,125.15,125.09,9.81]
[1725676485874,3.997,125.13,125.09,13.8079]
[1725676486070,8.06866016,125.13,125.09,13.8079]
[1725676486477,3.9967,125.14,125.1,3.9977]
[1725676486779,7.99917952,125.14,125.1,3.9977]
[1725676486975,3.9967,125.14,125.1,3.9977]
[1725676487579,3.99408188,125.13,125.1,3.9977]
[1725676488373,7.99098188,125.13,125.09,13.8079]
[1725676488977,3.99408188,125.13,125.08,13.8082]
[1725676489181,9.81,125.13,125.07,9.81]
[1725676489484,9.81,125.12,125.07,9.81]
[1725676489887,3.9976,125.11,125.07,13.8086]
[1725676490184,3.9557718,125.1,125.07,13.8086]
[1725676491183,3.9976,125.11,125.07,13.8086]
[1725676491782,7.96448949,125.11,125.07,13.8086]
[1725676499093,3.9978,125.1,125.07,13.8086]
[1725676499289,3.9978,125.1,125.06,8.164]
[1725676499594,3.9978,125.1,125.06,17.974]
[1725676502994,3.96688949,125.11,125.0,147.85163333]
[1725676502995,13.77688949,125.11,125.0,139.84983333]
[1725676503202,9.81,125.11,125.04,9.81]
[1725676503497,9.81,125.11,125.01,4.0955]
[1725676503498,13.71730617,125.11,125.05,9.81]
[1725676503698,3.9982,125.09,125.05,13.8092]
[1725676504597,3.9982,125.09,125.06,3.999]
[1725676504796,3.9978,125.1,125.06,9.81]
[1725676504996,3.90730617,125.11,125.06,9.81]
[1725676505296,3.9975,125.11,125.08,9.81]
[1725676505501,8.02893877,125.11,125.08,9.81]
[1725676506002,8.02893877,125.11,125.08,13.8083]
[1725676506905,4.03143877,125.11,125.08,13.8083]
[1725676507410,9.81,125.13,125.08,9.81]
[1725676507896,3.9975,125.11,125.08,9.81]
[1725676508095,9.81,125.12,125.06,8.1614]
[1725676508495,3.9979,125.1,125.06,8.1614]
[1725676511807,9.81,125.12,125.04,9.81]
[1725676512107,9.81,125.1,125.04,9.81]
[1725676512305,3.9982,125.09,125.05,3.9993]
[1725676514508,9.81,125.12,125.06,9.81]
[1725676514714,15.05548869,125.13,125.06,9.81]
[1725676515006,3.9977,125.11,125.07,3.9986]
[1725676516498,15.05548869,125.13,125.06,13.8089]
[1725676516499,3.9978,125.1,125.06,13.8089]
[1725676519606,3.9978,125.1,125.07,13.8086]
[1725676519804,3.9973,125.12,125.07,9.81]
[1725676520110,5.24548869,125.13,125.07,9.81]
[1725676520310,3.9973,125.12,125.08,3.9984]
[1725676520813,3.9973,125.12,125.09,3.998]
[1725676521110,3.95288869,125.13,125.1,9.81]
[1725676521306,3.997,125.13,125.1,9.81]
[1725676521508,8.05058944,125.13,125.1,9.81]
[1725676522011,40.07349341,125.15,125.1,9.81]
[1725676522307,16.92669256,125.15,125.14,9.81]
[1725676522609,3.9948,125.2,125.15,3.996]
[1725676522909,3.9948,125.2,125.16,9.81]
[1725676523507,1.3756,125.24,125.19,9.81]
[1725676523808,1.15179126,125.23,125.19,9.81]
[1725676524702,1.15179126,125.23,125.18,9.81]
[1725676524902,5.46718184,125.24,125.18,9.81]
[1725676525100,1.15179755,125.23,125.18,9.81]
[1725676525305,5.14539755,125.23,125.18,13.8051]
[1725676525505,3.9936,125.23,125.18,13.8051]
[1725676526609,4.09158184,125.24,125.19,3.9949]
[1725676526914,1.15180067,125.23,125.18,9.81]
[1725676527208,4.00096025,125.24,125.18,9.81]
[1725676527410,1.15180089,125.23,125.18,9.81]
[1725676527608,4.07320945,125.22,125.18,9.81]
[1725676527804,9.81,125.25,125.18,9.81]
[1725676528006,1.15179773,125.24,125.18,9.81]
[1725676528211,5.22580639,125.24,125.18,9.81]
[1725676528410,3.9936,125.23,125.18,13.8051]
[1725676529105,3.97730341,125.22,125.18,13.8051]
[1725676531003,7.97120341,125.22,125.18,13.8051]
[1725676532910,11.103,125.26,125.19,9.81]
[1725676533107,1.15151186,125.25,125.21,9.81]
[1725676533717,3.9936,125.24,125.21,9.81]
[1725676533911,5.21595665,125.26,125.21,9.81]
[1725676534118,1.15143004,125.25,125.22,9.81]
[1725676534414,12.5629,125.29,125.22,9.81]
[1725676534613,1.15137108,125.28,125.22,9.81]
[1725676534818,5.05404488,125.28,125.21,13.8041]
[1725676535116,1.15137108,125.27,125.21,13.8041]
[1725676535409,10.96137108,125.27,125.19,3.9949]
[1725676535607,10.96137108,125.26,125.19,9.81]
[1725676535808,1.15137108,125.25,125.19,9.81]
[1725676536008,3.9935,125.24,125.2,3.9944]
[1725676539820,9.81,125.24,125.18,9.81]
[1725676540016,10.96170636,125.23,125.16,141.05910128]
[1725676540216,9.81,125.23,125.16,141.05910128]
[1725676540912,3.9944,125.21,125.16,145.05470128]
[1725676541513,3.9947,125.2,125.15,5.3125]
[1725676541715,3.9947,125.2,125.16,9.81]
[1725676542114,3.9947,125.2,125.16,13.8058]
[1725676547817,9.81,125.22,125.16,9.81]
[1725676548025,1.15189603,125.21,125.16,9.81]
[1725676548334,9.81,125.22,125.16,9.81]
[1725676549321,3.9947,125.2,125.16,13.8058]
[1725676562032,2.7251,125.24,125.16,9.81]
[1725676562231,1.15182188,125.23,125.19,9.81]
[1725676562435,121.65999137,125.27,125.19,9.81]
[1725676562626,3.9935,125.24,125.2,3.9944]
[1725676562830,4.0182184,125.23,125.2,13.8044]
[1725676563530,3.9935,125.24,125.2,13.8044]
[1725676563729,3.9931,125.25,125.21,3.9942]
[1725676563935,121.65999137,125.27,125.21,3.9942]
[1725676564136,1.15146494,125.26,125.21,3.9942]
[1725676564533,3.9932,125.25,125.21,3.9942]
[1725676568936,9.81,125.26,125.19,9.81]
[1725676569232,1.15149296,125.25,125.19,9.81]
[1725676570430,3.9938,125.23,125.19,13.8047]
[1725676570937,3.9934,125.24,125.21,9.81]
[1725676571628,115.90376569,125.27,125.22,9.81]
[1725676571937,115.90376569,125.27,125.23,9.81]
[1725676572341,1.3502,125.31,125.25,9.81]
[1725676572527,1.15117719,125.3,125.25,9.81]
[1725676572728,1.15117719,125.29,125.25,9.81]
[1725676572932,9.81,125.32,125.25,9.81]
[1725676573129,1.15111629,125.31,125.25,9.81]
[1725676573336,1.15111629,125.3,125.25,9.81]
[1725676573538,5.14301629,125.29,125.25,9.81]
[1725676573733,9.81,125.32,125.25,9.81]
[1725676574042,1.15103201,125.31,125.25,9.81]
[1725676574244,10.96103201,125.31,125.25,9.81]
[1725676574442,1.15103201,125.3,125.25,9.81]
[1725676574737,3.9919,125.29,125.25,13.8029]
[1725676576645,3.9919,125.29,125.25,9.81]
[1725676581440,2.6916,125.33,125.26,9.81]
[1725676581441,3.9916,125.3,125.26,9.81]
[1725676582043,9.81,125.32,125.26,9.81]
[1725676582244,1.15081571,125.31,125.26,9.81]
[1725676583048,3.9915,125.3,125.26,9.81]
[1725676584647,3.9918,125.29,125.26,9.81]
[1725676585249,3.97508021,125.28,125.26,9.81]
[1725676587050,3.9915,125.3,125.26,13.8026]
[1725676588153,3.9913,125.31,125.27,3.9922]
[1725676588459,1.15076527,125.3,125.27,3.9922]
[1725676588652,9.81,125.34,125.27,3.9922]
[1725676588958,1.15076428,125.33,125.26,13.8025]
[1725676590355,3.9915,125.3,125.26,13.8025]
[1725676592958,6.7562543,125.35,125.29,9.81]
[1725676593159,1.1507132,125.34,125.29,9.81]
[1725676593758,3.991,125.32,125.29,9.81]
[1725676593959,5.3325543,125.35,125.29,9.81]
[1725676594254,5.3325543,125.35,125.3,9.81]
[1725676594255,1.15070702,125.34,125.3,9.81]
[1725676594454,3.9905,125.33,125.3,9.81]
[1725676594654,1.15070702,125.32,125.3,9.81]
[1725676595253,1.15070702,125.32,125.29,13.8015]
[1725676595454,3.9905,125.33,125.29,13.8015]
[1725676595657,1.15071702,125.32,125.29,13.8015]
[1725676596153,1.15071702,125.32,125.22,4.0369]
[1725676596357,1.15071702,125.32,125.26,9.81]
[1725676597461,3.9916,125.3,125.26,13.8026]
[1725676598056,3.9916,125.3,125.27,9.81]
[1725676599356,3.9912,125.31,125.27,9.81]
[1725676599954,3.9912,125.31,125.27,11.1684]
[1725676602153,3.9916,125.3,125.27,11.1684]
[1725676609172,3.9912,125.31,125.28,9.81]
[1725676609577,5.3325543,125.35,125.3,9.81]
[1725676609778,3.9906,125.33,125.3,9.81]
[1725676619285,1.15056314,125.32,125.3,9.81]
[1725676620089,3.9906,125.33,125.3,9.81]
[1725676620280,1.15055416,125.32,125.3,9.81]
[1725676620986,1.15055416,125.32,125.31,9.81]
[1725676621182,3.9902,125.34,125.31,9.81]
[1725676627995,3.9902,125.34,125.3,3.9913]
[1725676628298,13.7353543,125.35,125.28,2.7118]
[1725676628589,1.15055329,125.34,125.28,12.5218]
[1725676628989,3.9906,125.33,125.3,9.81]
[1725676629189,3.9253543,125.35,125.3,9.81]
[1725676629392,1.15049348,125.34,125.3,9.81]
[1725676629593,4.04574832,125.34,125.3,9.81]
[1725676629895,49.85605872,125.37,125.31,9.81]
[1725676630194,1.15041065,125.36,125.31,9.81]
[1725676630801,1.15040136,125.35,125.31,9.81]
[1725676630991,3.99585009,125.37,125.31,9.81]
[1725676631196,1.15039737,125.36,125.31,9.81]
[1725676631499,9.0974062,125.35,125.31,13.8009]
[1725676631693,3.9898,125.35,125.31,13.8009]
[1725676632289,7.88872653,125.35,125.31,13.8009]
[1725676632998,3.89892653,125.35,125.28,2.7118]
[1725676633299,57.53847419,125.37,125.3,9.81]
[1725676633486,3.9903,125.34,125.3,9.81]
[1725676633797,61.48290882,125.37,125.3,9.81]
[1725676633996,1.15036664,125.36,125.3,9.81]
[1725676634187,3.9904,125.34,125.3,9.81]
[1725676634390,61.48290882,125.37,125.3,9.81]
[1725676634592,1.15036701,125.36,125.3,9.81]
[1725676635893,3.9904,125.33,125.3,9.81]
[1725676637398,9.81,125.34,125.27,1.3584]
[1725676637595,10.96063956,125.33,125.27,1.3584]
[1725676637795,1.15063956,125.32,125.27,1.3584]
[1725676637995,3.9913,125.31,125.27,1.3584]
[1725676638299,4.01094188,125.3,125.27,1.3584]
[1725676638498,3.9915,125.3,125.27,1.3584]
[1725676638802,7.99485599,125.3,125.27,1.3584]
[1725676639106,3.9915,125.3,125.27,1.3584]
[1725676642307,3.9911,125.31,125.28,9.81]
[1725676642505,35.67477008,125.35,125.28,9.81]
[1725676642806,3.9913,125.31,125.28,9.81]
[1725676644202,3.9914,125.3,125.28,9.81]
[1725676647303,13.80113661,125.3,125.22,2.7053]
[1725676647506,13.80113661,125.3,125.22,12.5153]
[1725676647507,10.96106123,125.29,125.22,12.5153]
[1725676647800,9.81,125.29,125.22,12.5153]
[1725676648005,3.9924,125.27,125.22,16.5092]
[1725676648605,3.9927,125.26,125.22,16.5092]
[1725676649103,11.2015,125.29,125.22,16.5092]
[1725676649304,3.9925,125.27,125.22,16.5092]
[1725676650711,11.2015,125.29,125.22,16.5092]
[1725676650712,3.9927,125.26,125.22,16.5092]
[1725676651201,3.9925,125.27,125.24,9.81]
[1725676652904,58.95617419,125.34,125.25,9.81]
[1725676653097,1.15068203,125.33,125.28,9.81]
[1725676653503,3.9909,125.32,125.28,9.81]
[1725676653699,1.15068203,125.31,125.28,9.81]
[1725676653897,9.81,125.34,125.28,9.81]
[1725676654103,3.991,125.32,125.28,9.81]
[1725676654402,9.81,125.34,125.28,9.81]
[1725676654607,1.15063548,125.33,125.28,9.81]
[1725676654912,1.15063548,125.32,125.28,9.81]
[1725676655207,9.81,125.34,125.28,9.81]
[1725676655404,1.15063415,125.33,125.28,9.81]
[1725676656108,3.9909,125.32,125.28,9.81]
[1725676658102,3.9911,125.31,125.28,9.81]
[1725676666520,3.9915,125.3,125.23,1.3911]
[1725676666720,3.90735948,125.29,125.25,9.81]
[1725676667020,9.81,125.31,125.25,9.81]
[1725676667317,3.9919,125.29,125.25,13.8027]
[1725676667620,4.00639117,125.28,125.25,9.81]
[1725676668522,9.81,125.28,125.23,1.3911]
[1725676668825,13.77965361,125.28,125.23,1.3911]
[1725676669020,3.96965361,125.28,125.23,1.3911]
[1725676669225,3.9924,125.27,125.23,1.3911]
[1725676669422,7.95365191,125.27,125.23,1.3911]
[1725676669626,3.96125191,125.27,125.23,1.3911]
[1725676670423,8.04762991,125.27,125.23,15.1946]
[1725676671219,8.04762991,125.27,125.23,11.2011]
[1725676672629,3.9927,125.26,125.23,11.2011]
[1725676673324,7.92998306,125.26,125.23,11.2011]
[1725676673524,3.9927,125.26,125.23,11.2011]
[1725676675632,3.9927,125.26,125.23,1.3911]
[1725676679132,4.05473043,125.27,125.23,11.2011]
[1725676679333,12.5305,125.3,125.23,11.2011]
[1725676679532,1.15095769,125.29,125.23,11.2011]
[1725676679731,3.9922,125.28,125.24,13.8033]
[1725676680240,4.07077645,125.27,125.25,3.993]
[1725676680436,3.9919,125.29,125.25,3.993]
[1725676681039,7.89532408,125.29,125.25,3.993]
[1725676690548,1.3591,125.33,125.25,9.81]
[1725676690749,10.96075807,125.32,125.25,9.81]
[1725676690952,9.81,125.32,125.25,9.81]
[1725676691251,3.9914,125.3,125.26,3.9925]
[1725676691439,8.08269162,125.3,125.26,3.9925]
[1725676691643,3.9914,125.3,125.26,3.9925]
[1725676692241,7.89420068,125.3,125.26,3.9925]
[1725676693049,3.9917,125.29,125.25,13.8029]
[1725676693357,3.90280068,125.3,125.24,9.81]
[1725676693552,9.81,125.31,125.24,9.81]
[1725676693756,3.9918,125.29,125.25,3.9928]
[1725676694052,4.04097412,125.28,125.25,3.9928]
[1725676694650,3.9912,125.31,125.27,3.9923]
[1725676695254,3.9909,125.32,125.27,9.81]
[1725676695444,3.9909,125.32,125.28,9.81]
[1725676696347,3.9909,125.32,125.28,13.8018]
[1725676700359,3.9906,125.33,125.28,13.8018]
[1725676702359,16.90202888,125.36,125.31,9.81]
[1725676702558,45.38393359,125.37,125.31,9.81]
[1725676702755,1.15027559,125.36,125.31,9.81]
[1725676703058,5.13997559,125.36,125.32,3.9905]
[1725676703365,3.9897,125.36,125.32,3.9905]
[1725676706864,13.8,125.35,125.29,3.9805]
[1725676707255,3.99,125.35,125.3,9.81]
[1725676707455,3.99,125.35,125.31,3.991]
[1725676712361,3.9896,125.36,125.32,3.9905]
[1725676714761,3.9898,125.35,125.31,13.8009]
[1725676718267,3.9899,125.35,125.31,13.8009]
[1725676718671,3.94443463,125.37,125.31,9.81]
[1725676718866,9.81,125.37,125.31,9.81]
[1725676719068,3.9899,125.35,125.31,9.81]
[1725676719467,3.9899,125.35,125.3,13.8012]
[1725676719975,3.9902,125.34,125.3,3.9912]
[1725676727876,3.94284284,125.37,125.31,9.81]
[1725676728077,1.15024219,125.36,125.31,9.81]
[1725676728276,5.1852896,125.36,125.31,9.81]
[1725676728477,4.03504741,125.36,125.31,9.81]
[1725676728679,9.81,125.37,125.31,9.81]
[1725676728872,1.15024102,125.36,125.31,9.81]
[1725676729080,3.9901,125.35,125.31,9.81]
[1725676729474,9.81,125.37,125.31,9.81]
[1725676729783,3.9901,125.34,125.31,9.81]
[1725676733585,3.9901,125.34,125.3,13.8012]
[1725676735589,3.9904,125.33,125.3,13.8012]
[1725676739090,3.9907,125.32,125.3,13.8012]
[1725676740383,3.9905,125.33,125.3,13.8012]
[1725676740788,3.9909,125.32,125.3,9.81]
[1725676741085,3.9909,125.32,125.29,7.9721]
[1725676741288,9.81,125.35,125.29,13.7905]
[1725676741883,3.9906,125.33,125.3,3.9913]
[1725676745491,3.9903,125.34,125.3,3.9913]
[1725676747990,3.9905,125.33,125.29,17.7819]
[1725676748185,3.9905,125.33,125.29,16.4814]
[1725676748390,3.9905,125.33,125.29,5.3343]
[1725676748591,3.9905,125.33,125.29,15.1443]
[1725676751497,3.9905,125.33,125.3,3.9913]
[1725676754397,1.3306,125.36,125.31,3.9909]
[1725676754597,1.3306,125.36,125.31,13.8009]
[1725676754900,3.96120392,125.37,125.32,9.81]
[1725676755200,16.90070391,125.38,125.34,9.81]
[1725676755502,1.15009889,125.37,125.34,9.81]
[1725676755710,7.893349,125.38,125.34,9.81]
[1725676757398,24.79145019,125.38,125.34,9.81]
[1725676757800,47.93304568,125.38,125.34,9.81]
[1725676758193,24.79145019,125.38,125.34,9.81]
[1725676758599,47.93304568,125.38,125.34,9.81]
[1725676761104,3.9891,125.37,125.34,9.81]
[1725676762606,65.42124451,125.38,125.34,13.8001]
[1725676762814,47.93304568,125.38,125.34,13.8001]
[1725676767506,65.42099673,125.38,125.34,13.8001]
[1725676768305,47.93304568,125.38,125.34,13.8001]
[1725676770505,3.9891,125.37,125.33,3.9902]
[1725676771225,3.9891,125.37,125.33,13.8002]
[1725676777019,3.9891,125.37,125.34,3.9901]
[1725676782721,3.9891,125.37,125.33,13.8002]
[1725676793722,3.9891,125.37,125.33,3.9902]
[1725676800629,9.81,125.36,125.3,1.3715]
[1725676801127,3.9906,125.33,125.29,1.3429]
[1725676802525,3.9903,125.34,125.31,9.81]
[1725676803528,3.9899,125.35,125.31,9.81]
[1725676804217,3.9899,125.35,125.31,13.8009]
[1725676808232,46.85217255,125.37,125.31,9.81]
[1725676808533,1.15025287,125.36,125.31,9.81]
[1725676809426,3.9901,125.34,125.31,9.81]
[1725676811126,9.81,125.36,125.29,17.9005]
[1725676812533,3.9903,125.34,125.29,17.9005]
[1725676813430,3.9903,125.34,125.29,9.81]
[1725676813631,23.14159549,125.33,125.14,11.9894]
[1725676813942,23.14159549,125.32,125.3,11.65847517]
[1725676814232,23.14159549,125.31,125.3,11.65847517]
[1725676814533,3.9906,125.33,125.3,11.65847517]
[1725676814727,3.9906,125.33,125.29,13.8015]
[1725676814927,9.81,125.36,125.23,134.13363281]
[1725676814928,16.90058689,125.31,125.23,134.13363281]
[1725676815135,16.90058689,125.31,125.29,9.81]
[1725676815434,20.89138689,125.32,125.23,122.54890373]
[1725676815734,16.90058689,125.3,125.29,13.8015]
[1725676816329,3.9908,125.32,125.29,13.8015]
[1725676817134,3.9911,125.31,125.29,13.8015]
[1725676817531,17.49017136,125.3,125.23,104.43764858]
[1725676817735,17.49017136,125.29,125.23,70.33251609]
[1725676817932,3.9911,125.31,125.28,9.81]
[1725676818232,17.49092993,125.3,125.28,13.8018]
[1725676818435,3.9911,125.31,125.28,13.8018]
[1725676819335,3.9914,125.3,125.28,13.8018]
[1725676819632,13.71243155,125.33,125.26,9.81]
[1725676819834,9.81,125.33,125.24,6.7122192]
[1725676820031,3.9918,125.29,125.26,13.8024]
[1725676821037,3.9918,125.29,125.26,3.9924]
[1725676821332,3.9915,125.3,125.27,13.8021]
[1725676821538,3.9915,125.3,125.28,15.42092809]
[1725676821738,3.9915,125.3,125.29,15.42092809]
[1725676822036,3.9912,125.31,125.29,15.42038604]
[1725676822236,3.9912,125.31,125.3,5.93706643]
[1725676824233,3.9912,125.31,125.28,3.992]
[1725676824429,3.9912,125.31,125.29,5.93703138]
[1725676824631,3.9912,125.31,125.28,3.992]
[1725676824836,3.9912,125.31,125.29,5.93723839]
[1725676825036,3.9912,125.31,125.28,3.992]
[1725676825245,3.9912,125.31,125.29,5.93716024]
[1725676825441,3.9912,125.31,125.28,3.992]
[1725676825636,3.9912,125.31,125.29,5.9370731]
[1725676825832,3.9912,125.31,125.28,3.992]
[1725676826044,3.9912,125.31,125.29,5.93706634]
[1725676826244,3.9912,125.31,125.28,3.992]
[1725676826451,3.9912,125.31,125.29,5.93706634]
[1725676826643,3.9912,125.31,125.28,3.992]
[1725676826942,3.9912,125.31,125.29,5.93831285]
[1725676827135,3.9912,125.31,125.28,3.992]
[1725676827334,3.9912,125.31,125.29,5.93849624]
[1725676827546,3.9912,125.31,125.28,3.992]
[1725676827737,3.9912,125.31,125.29,5.93848949]
[1725676827932,3.9912,125.31,125.28,3.992]
[1725676828132,3.9912,125.31,125.29,5.9397113]
[1725676828346,3.9912,125.31,125.28,3.992]
[1725676829643,3.9912,125.31,125.29,5.94161951]
[1725676829844,3.9912,125.31,125.28,3.992]
[1725676830041,3.9912,125.31,125.29,5.94248463]
[1725676830243,3.9912,125.31,125.28,3.992]
[1725676830548,3.9912,125.31,125.29,5.9440905]
[1725676830748,3.9912,125.31,125.28,3.992]
[1725676837058,1.3501,125.37,125.3,9.81]
[1725676837262,1.3501,125.37,125.32,9.81]
[1725676837463,3.9896,125.36,125.32,13.8006]
[1725676837858,7.93323624,125.36,125.32,13.8006]
[1725676838860,3.9898,125.35,125.31,3.9909]
[1725676839056,3.9898,125.35,125.32,5.93958618]
[1725676839356,3.9898,125.35,125.31,3.9909]
[1725676839750,3.9898,125.35,125.32,5.93948745]
[1725676839965,3.9898,125.35,125.31,3.9909]
[1725676840162,3.9898,125.35,125.32,5.93955314]
[1725676840466,7.93333624,125.36,125.32,3.9907]
[1725676840660,3.9897,125.36,125.32,3.9907]
[1725676841159,3.89702825,125.35,125.32,3.9907]
[1725676841359,7.88692825,125.35,125.31,3.991]
[1725676842263,3.9899,125.35,125.31,3.991]
[1725676842557,3.9899,125.35,125.3,9.81]
[1725676842763,3.9899,125.35,125.32,3.9907]
[1725676842965,3.9901,125.34,125.31,5.9401725]
[1725676843260,3.9901,125.34,125.3,3.9911]
[1725676843465,3.9901,125.34,125.31,5.94071547]
[1725676843666,3.9901,125.34,125.3,3.9911]
[1725676843963,3.9901,125.34,125.31,5.94072896]
[1725676844262,9.81,125.33,125.26,12.5088]
[1725676844460,9.81,125.33,125.27,5.94472497]
[1725676844761,9.81,125.33,125.28,5.94472497]
[1725676844959,9.81,125.33,125.26,12.5088]
[1725676845156,9.81,125.33,125.27,5.94516247]
[1725676845365,3.9913,125.31,125.27,3.9922]
[1725676846673,3.9913,125.31,125.26,13.8025]
[1725676846871,9.81,125.31,125.25,11.2047]
[1725676847166,9.81,125.31,125.26,5.9474734]
[1725676847371,9.81,125.31,125.25,11.2047]
[1725676847568,9.81,125.31,125.26,5.94851995]
[1725676847768,9.81,125.31,125.25,11.2047]
[1725676847969,9.81,125.31,125.26,5.94889283]
[1725676848169,9.81,125.31,125.25,11.2047]
[1725676848368,3.9917,125.29,125.26,5.94893503]
[1725676848566,3.9917,125.29,125.25,15.1974]
[1725676848768,3.992,125.28,125.26,5.9490237]
[1725676849071,9.81,125.29,125.23,74.32601609]
[1725676849378,9.81,125.29,125.24,5.95001449]
[1725676849566,3.9922,125.28,125.23,74.32601609]
[1725676849760,3.9922,125.28,125.24,5.95034341]
[1725676849971,3.9922,125.28,125.24,3.9933]
[1725676850367,3.9918,125.29,125.25,3.9929]
[1725676850666,11.156,125.32,125.26,9.81]
[1725676851265,3.9915,125.3,125.26,13.8026]
[1725676852169,11.156,125.32,125.23,70.33251609]
[1725676852170,3.9919,125.29,125.25,3.9929]
[1725676852372,3.9919,125.29,125.26,5.94822259]
[1725676852670,3.9919,125.29,125.25,3.9929]
[1725676852873,3.9919,125.29,125.26,5.94809493]
[1725676853073,3.9919,125.29,125.25,3.9929]
[1725676857375,3.992,125.28,125.24,13.8032]
[1725676857567,1.346,125.32,125.25,5.9498254]
[1725676857568,4.05175644,125.27,125.25,5.9498254]
[1725676857767,9.81,125.29,125.22,11.1883]
[1725676857975,3.9925,125.27,125.23,9.94385771]
[1725676858178,7.93363782,125.27,125.24,5.95045771]
[1725676858375,7.93363782,125.27,125.23,3.9934]
[1725676858678,7.93363782,125.27,125.24,5.9509343]
[1725676858873,3.9928,125.26,125.22,15.1821]
[1725676859076,3.9928,125.26,125.23,5.9509921]
[1725676859380,3.9928,125.26,125.24,5.95093468]
[1725676859577,3.9928,125.26,125.22,15.1821]
[1725676859776,3.9928,125.26,125.23,5.95082277]